[Event "*** Titled Tuesday Blitz"]
[Site "Chess.com"]
[Date "2020.04.28"]
[Round "6"]
[White "BikingBrian"]
[Black "Aleksandar-Topalov"]
[Result "0-1"]
[WhiteElo "2328"]
[BlackElo "2502"]
[TimeControl "180+1"]
[EndTime "11:07:48 PDT"]
[Termination "Aleksandar-Topalov won by resignation"]

1. d4 {[%clk 0:03:00.9]} 1... Nf6 {[%clk 0:02:50.9]} 2. Bg5 {[%clk 0:03:00.1]}
2... g6 {[%clk 0:02:50.5]} 3. Bxf6 {[%clk 0:02:59.8]} 3... exf6 {[%clk
0:02:49.7]} 4. e3 {[%clk 0:03:00.3]} 4... h5 {[%clk 0:02:49.5]} 5. h4 {[%clk
0:02:56.4]} 5... f5 {[%clk 0:02:49.6]} 6. g3 {[%clk 0:02:56.5]} 6... Bh6 {[%clk
0:02:49.6]} 7. Ne2 {[%clk 0:02:55.1]} 7... d6 {[%clk 0:02:49.6]} 8. Bg2 {[%clk
0:02:55.3]} 8... Nd7 {[%clk 0:02:49.5]} 9. c4 {[%clk 0:02:54.1]} 9... Nf6 {[%clk
0:02:49.5]} 10. Nbc3 {[%clk 0:02:53]} 10... Ng4 {[%clk 0:02:49.6]} 11. Nf4
{[%clk 0:02:49.6]} 11... O-O {[%clk 0:02:48.4]} 12. O-O {[%clk 0:02:48.9]} 12...
Re8 {[%clk 0:02:48.5]} 13. c5 {[%clk 0:02:24.7]} 13... c6 {[%clk 0:02:42.1]} 14.
cxd6 {[%clk 0:02:23.6]} 14... Qxd6 {[%clk 0:02:42.1]} 15. Qb3 {[%clk 0:02:16.1]}
15... Bxf4 {[%clk 0:02:28.1]} 16. gxf4 {[%clk 0:02:08.2]} 16... Qf6 {[%clk
0:02:25.8]} 17. f3 {[%clk 0:02:04.5]} 17... Nxe3 {[%clk 0:02:24.2]} 18. Rfe1
{[%clk 0:02:04.7]} 18... Qxh4 {[%clk 0:02:22.5]} 19. Ne4 {[%clk 0:01:54]} 19...
fxe4 {[%clk 0:01:55.3]} 20. Qxe3 {[%clk 0:01:50.8]} 20... Bh3 {[%clk 0:01:35.3]}
21. fxe4 {[%clk 0:01:45.5]} 21... Bxg2 {[%clk 0:01:35.2]} 22. Kxg2 {[%clk
0:01:44.6]} 22... Rad8 {[%clk 0:01:33.3]} 23. Rad1 {[%clk 0:01:39.6]} 23... Rd7
{[%clk 0:01:29.3]} 24. Rd3 {[%clk 0:01:24.3]} 24... Rde7 {[%clk 0:01:22.3]} 25.
e5 {[%clk 0:01:21.2]} 25... Rd7 {[%clk 0:01:15.5]} 26. Qg3 {[%clk 0:01:05.9]}
26... Qxg3+ {[%clk 0:01:14.5]} 27. Kxg3 {[%clk 0:01:06.8]} 27... Red8 {[%clk
0:01:14.1]} 28. Red1 {[%clk 0:01:06.5]} 28... Rd5 {[%clk 0:01:12.9]} 29. b4
{[%clk 0:01:03.1]} 29... b6 {[%clk 0:01:11.1]} 30. f5 {[%clk 0:00:57.6]} 30...
gxf5 {[%clk 0:01:08.9]} 31. Kf4 {[%clk 0:00:57.1]} 31... c5 {[%clk 0:01:09.4]}
32. bxc5 {[%clk 0:00:53.8]} 32... bxc5 {[%clk 0:01:09.2]} 33. Rg1+ {[%clk
0:00:48.2]} 33... Kf8 {[%clk 0:01:08.4]} 34. Kxf5 {[%clk 0:00:41.5]} 34... Rxd4
{[%clk 0:01:08.3]} 35. Rh3 {[%clk 0:00:38.2]} 35... h4 {[%clk 0:01:03.8]} 36.
Rgh1 {[%clk 0:00:31.5]} 36... Rc8 {[%clk 0:00:55.2]} 37. Ra3 {[%clk 0:00:22.4]}
37... Rc7 {[%clk 0:00:53.1]} 38. Rb3 {[%clk 0:00:21.7]} 38... Ke7 {[%clk
0:00:52.3]} 39. Rb8 {[%clk 0:00:20.8]} 39... c4 {[%clk 0:00:36.6]} 40. Rg1
{[%clk 0:00:20.6]} 40... c3 {[%clk 0:00:36.2]} 41. Rgg8 {[%clk 0:00:20.5]} 41...
c2 {[%clk 0:00:35.3]} 42. Rge8+ {[%clk 0:00:19.7]} 42... Kd7 {[%clk 0:00:35.5]}
43. Rbd8+ {[%clk 0:00:19.4]} 43... Kc6 {[%clk 0:00:36]} 44. Rxd4 {[%clk
0:00:19.2]} 44... c1=Q {[%clk 0:00:36.1]} 45. Rf4 {[%clk 0:00:17.3]} 45... h3
{[%clk 0:00:30.4]} 46. Rh8 {[%clk 0:00:15.7]} 46... Qc2+ {[%clk 0:00:28.4]} 47.
Kf6 {[%clk 0:00:15]} 47... h2 {[%clk 0:00:28.2]} 48. Rfh4 {[%clk 0:00:10.8]}
48... Qf2+ {[%clk 0:00:24.9]} 49. Kg7 {[%clk 0:00:09.9]} 49... f6+ {[%clk
0:00:25.2]} 50. Kg6 {[%clk 0:00:09.1]} 50... Qg3+ {[%clk 0:00:24.8]} 51. Kf5
{[%clk 0:00:08.7]} 51... Qf3+ {[%clk 0:00:24.1]} 52. Kg6 {[%clk 0:00:08.5]}
52... fxe5 {[%clk 0:00:22.1]} 53. Rxh2 {[%clk 0:00:08]} 53... Qf7+ {[%clk
0:00:22.1]} 54. Kg5 {[%clk 0:00:08.3]} 54... Qg7+ {[%clk 0:00:22.5]} 55. Kf5
{[%clk 0:00:08]} 55... Rf7+ {[%clk 0:00:22.8]} 56. Ke4 {[%clk 0:00:08.3]} 56...
Qg4+ {[%clk 0:00:22.4]} 57. Kd3 {[%clk 0:00:07.7]} 57... Rf3+ {[%clk 0:00:21.5]}
58. Kc2 {[%clk 0:00:08]} 58... Qc4+ {[%clk 0:00:21.4]} 59. Kb2 {[%clk
0:00:07.6]} 59... Qb4+ {[%clk 0:00:19.4]} 60. Kc2 {[%clk 0:00:07.7]} 60... Rc3+
{[%clk 0:00:18.6]} 61. Kd1 {[%clk 0:00:06.9]} 61... Qb1+ {[%clk 0:00:18.7]} 62.
Ke2 {[%clk 0:00:06.6]} 62... Qb2+ {[%clk 0:00:19.2]} 0-1

[Event "*** Titled Tuesday Blitz"]
[Site "Chess.com"]
[Date "2020.04.28"]
[Round "6"]
[White "eightbyeightchess"]
[Black "vanea_03"]
[Result "1/2-1/2"]
[WhiteElo "2497"]
[BlackElo "2669"]
[TimeControl "180+1"]
[EndTime "11:07:50 PDT"]
[Termination "Game drawn by repetition"]

1. e4 {[%clk 0:03:00.9]} 1... e5 {[%clk 0:03:00]} 2. Nf3 {[%clk 0:02:59.9]} 2...
Nc6 {[%clk 0:03:00.1]} 3. Bb5 {[%clk 0:03:00]} 3... a6 {[%clk 0:03:00.2]} 4. Ba4
{[%clk 0:03:00]} 4... Nf6 {[%clk 0:03:00.2]} 5. d4 {[%clk 0:02:59.5]} 5... exd4
{[%clk 0:02:47.3]} 6. O-O {[%clk 0:02:59.3]} 6... Be7 {[%clk 0:02:31]} 7. Re1
{[%clk 0:02:58.1]} 7... O-O {[%clk 0:02:30.7]} 8. e5 {[%clk 0:02:57.9]} 8... Ne8
{[%clk 0:02:31]} 9. c3 {[%clk 0:02:55.8]} 9... d3 {[%clk 0:02:20.1]} 10. Qxd3
{[%clk 0:02:54.1]} 10... d6 {[%clk 0:02:18.8]} 11. Bc2 {[%clk 0:02:52.7]} 11...
g6 {[%clk 0:02:16.9]} 12. Bh6 {[%clk 0:02:45.3]} 12... Ng7 {[%clk 0:02:17.3]}
13. exd6 {[%clk 0:02:35.5]} 13... Bxd6 {[%clk 0:02:13.1]} 14. Qd2 {[%clk
0:02:09.1]} 14... Bg4 {[%clk 0:02:05.3]} 15. Nd4 {[%clk 0:01:40.1]} 15... Qh4
{[%clk 0:01:35.9]} 16. g3 {[%clk 0:01:36]} 16... Nxd4 {[%clk 0:01:34.4]} 17.
Qxd4 {[%clk 0:01:21.6]} 17... Qxh6 {[%clk 0:01:28.4]} 18. Qxg4 {[%clk
0:01:20.7]} 18... Rae8 {[%clk 0:01:26.2]} 19. Rd1 {[%clk 0:01:13.1]} 19... f5
{[%clk 0:01:06.5]} 20. Qf3 {[%clk 0:01:12.4]} 20... f4 {[%clk 0:01:03.1]} 21. g4
{[%clk 0:01:12.7]} 21... Kh8 {[%clk 0:01:01.4]} 22. Nd2 {[%clk 0:01:11.2]} 22...
Ne6 {[%clk 0:01:02]} 23. Ne4 {[%clk 0:01:09.7]} 23... Ng5 {[%clk 0:00:57.4]} 24.
Nxg5 {[%clk 0:01:08.6]} 24... Qxg5 {[%clk 0:00:58.3]} 25. Rd5 {[%clk 0:00:52]}
25... Re5 {[%clk 0:00:54.7]} 26. Rxe5 {[%clk 0:00:51]} 26... Qxe5 {[%clk
0:00:55.6]} 27. Rd1 {[%clk 0:00:46.7]} 27... Re8 {[%clk 0:00:45.5]} 28. Bb3
{[%clk 0:00:37.7]} 28... Kg7 {[%clk 0:00:36.2]} 29. Kg2 {[%clk 0:00:36.7]} 29...
Qe4 {[%clk 0:00:24.5]} 30. Qxe4 {[%clk 0:00:34.5]} 30... Rxe4 {[%clk 0:00:25.4]}
31. Kf3 {[%clk 0:00:34.6]} 31... Re7 {[%clk 0:00:25.7]} 32. Rd2 {[%clk 0:00:29]}
32... a5 {[%clk 0:00:22.4]} 33. Re2 {[%clk 0:00:28.2]} 33... Rxe2 {[%clk
0:00:21.4]} 34. Kxe2 {[%clk 0:00:29.1]} 34... f3+ {[%clk 0:00:21.7]} 35. Kxf3
{[%clk 0:00:29.2]} 35... Bxh2 {[%clk 0:00:22.4]} 36. Ke4 {[%clk 0:00:29.3]}
36... Kf6 {[%clk 0:00:18.3]} 37. f4 {[%clk 0:00:28.4]} 37... h6 {[%clk
0:00:18.9]} 38. Bc2 {[%clk 0:00:23.3]} 38... b6 {[%clk 0:00:17.6]} 39. b4 {[%clk
0:00:21.1]} 39... Bg3 {[%clk 0:00:11.4]} 40. bxa5 {[%clk 0:00:19.4]} 40... bxa5
{[%clk 0:00:12.3]} 41. c4 {[%clk 0:00:18.8]} 41... Bh2 {[%clk 0:00:09.7]} 42. a4
{[%clk 0:00:17.1]} 42... Bg3 {[%clk 0:00:09.6]} 43. Bd3 {[%clk 0:00:15.8]} 43...
Bh2 {[%clk 0:00:05.3]} 44. c5 {[%clk 0:00:12.5]} 44... Bg1 {[%clk 0:00:03.3]}
45. c6 {[%clk 0:00:12.2]} 45... Bc5 {[%clk 0:00:02.4]} 46. Kd5 {[%clk
0:00:10.6]} 46... Bd6 {[%clk 0:00:02.7]} 47. f5 {[%clk 0:00:10.3]} 47... h5
{[%clk 0:00:03.1]} 48. gxh5 {[%clk 0:00:08.4]} 48... gxh5 {[%clk 0:00:03.1]} 49.
Ke4 {[%clk 0:00:06.9]} 49... h4 {[%clk 0:00:02.9]} 50. Bf1 {[%clk 0:00:07.4]}
50... Kg5 {[%clk 0:00:02.6]} 51. Bh3 {[%clk 0:00:07.5]} 51... Bb4 {[%clk
0:00:02.7]} 52. Kf3 {[%clk 0:00:06.2]} 52... Bd6 {[%clk 0:00:02.6]} 53. Ke4
{[%clk 0:00:06.5]} 53... Be7 {[%clk 0:00:03.1]} 54. Kf3 {[%clk 0:00:05.4]} 54...
Bd6 {[%clk 0:00:03.2]} 55. Ke4 {[%clk 0:00:05.7]} 1/2-1/2

[Event "*** Titled Tuesday Blitz"]
[Site "Chess.com"]
[Date "2020.04.28"]
[Round "6"]
[White "walkingcreep"]
[Black "kleopl"]
[Result "1-0"]
[WhiteElo "2641"]
[BlackElo "2476"]
[TimeControl "180+1"]
[EndTime "11:07:50 PDT"]
[Termination "walkingcreep won by resignation"]

1. d4 {[%clk 0:03:00.9]} 1... Nf6 {[%clk 0:02:59.3]} 2. c4 {[%clk 0:02:59.6]}
2... g6 {[%clk 0:02:59.4]} 3. Nc3 {[%clk 0:02:59.3]} 3... d5 {[%clk 0:02:59.6]}
4. cxd5 {[%clk 0:02:59.3]} 4... Nxd5 {[%clk 0:03:00.5]} 5. e4 {[%clk 0:02:59.7]}
5... Nxc3 {[%clk 0:03:00.7]} 6. bxc3 {[%clk 0:03:00.6]} 6... c5 {[%clk
0:03:01.1]} 7. Nf3 {[%clk 0:02:59.9]} 7... Bg7 {[%clk 0:03:01.3]} 8. Be2 {[%clk
0:03:00.4]} 8... O-O {[%clk 0:03:01.5]} 9. Be3 {[%clk 0:03:00.3]} 9... Nc6
{[%clk 0:03:00.3]} 10. O-O {[%clk 0:02:58.7]} 10... b6 {[%clk 0:03:00.5]} 11. e5
{[%clk 0:02:45.6]} 11... Bb7 {[%clk 0:02:47.5]} 12. h4 {[%clk 0:02:38.6]} 12...
cxd4 {[%clk 0:02:45.5]} 13. cxd4 {[%clk 0:02:38.3]} 13... Nb4 {[%clk 0:02:45.6]}
14. h5 {[%clk 0:02:34.8]} 14... Nd5 {[%clk 0:02:45.3]} 15. hxg6 {[%clk
0:02:23.2]} 15... hxg6 {[%clk 0:02:39.7]} 16. Bd2 {[%clk 0:02:17.2]} 16... Qd7
{[%clk 0:02:37]} 17. Ng5 {[%clk 0:02:14.3]} 17... Rad8 {[%clk 0:02:28]} 18. Qb3
{[%clk 0:02:04.1]} 18... e6 {[%clk 0:02:21.9]} 19. Qh3 {[%clk 0:02:02.6]} 19...
Rfe8 {[%clk 0:02:14.7]} 20. Qh7+ {[%clk 0:02:00.9]} 20... Kf8 {[%clk 0:02:15]}
21. Ne4 {[%clk 0:01:59.5]} 21... Qc6 {[%clk 0:01:52.7]} 22. Bf3 {[%clk
0:01:51.3]} 22... Qc4 {[%clk 0:01:39.2]} 23. Rad1 {[%clk 0:01:27.3]} 23... Qxd4
{[%clk 0:01:25.6]} 24. Bh6 {[%clk 0:01:25.8]} 24... Qxe5 {[%clk 0:01:24.5]} 25.
Qh8+ {[%clk 0:01:25.4]} 25... Ke7 {[%clk 0:01:24.7]} 26. Qxg7 {[%clk 0:01:24.5]}
26... Qxg7 {[%clk 0:01:17]} 27. Bxg7 {[%clk 0:01:25.4]} 27... f6 {[%clk
0:01:10.2]} 28. Rxd5 {[%clk 0:01:07.2]} 28... exd5 {[%clk 0:01:06.3]} 29. Nxf6
{[%clk 0:01:04.9]} 29... Kf7 {[%clk 0:00:47.3]} 30. Nxe8 {[%clk 0:01:03.4]}
30... Rxe8 {[%clk 0:00:48.2]} 31. Bd4 {[%clk 0:01:00.8]} 31... Rc8 {[%clk
0:00:47.1]} 32. Re1 {[%clk 0:00:53.3]} 32... Rc2 {[%clk 0:00:45]} 33. Re2 {[%clk
0:00:53.6]} 33... Rc4 {[%clk 0:00:43.7]} 34. Rd2 {[%clk 0:00:52.3]} 34... Ke6
{[%clk 0:00:42.2]} 35. g4 {[%clk 0:00:52.4]} 35... Rc1+ {[%clk 0:00:35.2]} 36.
Kg2 {[%clk 0:00:52.3]} 36... Ba6 {[%clk 0:00:29.4]} 37. Kg3 {[%clk 0:00:48.4]}
37... Bc4 {[%clk 0:00:28.1]} 38. Kf4 {[%clk 0:00:46.1]} 38... Re1 {[%clk
0:00:21.7]} 39. Be3 {[%clk 0:00:39.2]} 39... Ra1 {[%clk 0:00:20.2]} 40. Kg5
{[%clk 0:00:37.3]} 40... Rxa2 {[%clk 0:00:17.8]} 41. Rxa2 {[%clk 0:00:36]} 41...
Bxa2 {[%clk 0:00:18.7]} 42. Kxg6 {[%clk 0:00:36.3]} 42... Bb1+ {[%clk
0:00:15.6]} 43. Kh6 {[%clk 0:00:33.7]} 43... Ke5 {[%clk 0:00:16]} 44. g5 {[%clk
0:00:33.2]} 44... d4 {[%clk 0:00:16.5]} 45. Bd2 {[%clk 0:00:33.6]} 45... a5
{[%clk 0:00:16.2]} 46. g6 {[%clk 0:00:33.6]} 46... a4 {[%clk 0:00:15.1]} 47. g7
{[%clk 0:00:31.6]} 47... Ba2 {[%clk 0:00:15.5]} 48. Bc6 {[%clk 0:00:18.6]} 48...
d3 {[%clk 0:00:10.8]} 49. Bxa4 {[%clk 0:00:17.6]} 49... Kd4 {[%clk 0:00:11.2]}
50. Kh7 {[%clk 0:00:16.3]} 50... Bd5 {[%clk 0:00:09.7]} 51. g8=Q {[%clk
0:00:16.4]} 51... Bxg8+ {[%clk 0:00:09.5]} 52. Kxg8 {[%clk 0:00:17.3]} 52... Kc5
{[%clk 0:00:09.7]} 53. Bd1 {[%clk 0:00:16.5]} 53... b5 {[%clk 0:00:09.6]} 54.
Kf7 {[%clk 0:00:17.4]} 54... Kd5 {[%clk 0:00:09.7]} 55. Bb3+ {[%clk 0:00:17.6]}
55... Ke4 {[%clk 0:00:09.4]} 56. Ke6 {[%clk 0:00:17.5]} 56... Kf3 {[%clk
0:00:09.5]} 57. Be3 {[%clk 0:00:17.5]} 57... d2 {[%clk 0:00:09.9]} 58. Bd1+
{[%clk 0:00:17.4]} 58... Kg2 {[%clk 0:00:09.3]} 59. f4 {[%clk 0:00:17.5]} 1-0

[Event "*** Titled Tuesday Blitz"]
[Site "Chess.com"]
[Date "2020.04.28"]
[Round "6"]
[White "FrogMist"]
[Black "mfwagnerpeixoto"]
[Result "0-1"]
[WhiteElo "2396"]
[BlackElo "2212"]
[TimeControl "180+1"]
[EndTime "11:07:50 PDT"]
[Termination "mfwagnerpeixoto won by checkmate"]

1. c4 {[%clk 0:03:00.9]} 1... Nf6 {[%clk 0:02:58.1]} 2. Nc3 {[%clk 0:03:00.4]}
2... c6 {[%clk 0:02:57.7]} 3. g3 {[%clk 0:02:56.5]} 3... d5 {[%clk 0:02:58]} 4.
Bg2 {[%clk 0:02:55.5]} 4... g6 {[%clk 0:02:56.2]} 5. Nf3 {[%clk 0:02:53.6]} 5...
Bg7 {[%clk 0:02:55.6]} 6. O-O {[%clk 0:02:52.7]} 6... O-O {[%clk 0:02:52.9]} 7.
d3 {[%clk 0:02:49.4]} 7... Na6 {[%clk 0:02:37.9]} 8. h3 {[%clk 0:02:40.1]} 8...
d4 {[%clk 0:02:32.2]} 9. Ne4 {[%clk 0:02:24.2]} 9... Nxe4 {[%clk 0:02:30.2]} 10.
dxe4 {[%clk 0:02:25.1]} 10... Nc5 {[%clk 0:02:24.1]} 11. Ne1 {[%clk 0:02:24.9]}
11... f5 {[%clk 0:02:15.3]} 12. exf5 {[%clk 0:02:14.8]} 12... Bxf5 {[%clk
0:02:16.2]} 13. g4 {[%clk 0:02:09.4]} 13... Be6 {[%clk 0:02:10]} 14. Nd3 {[%clk
0:02:05.9]} 14... Nxd3 {[%clk 0:02:04.4]} 15. exd3 {[%clk 0:02:06.8]} 15... Bf7
{[%clk 0:02:01.4]} 16. b4 {[%clk 0:01:58.8]} 16... a5 {[%clk 0:01:59.7]} 17. b5
{[%clk 0:01:55.1]} 17... cxb5 {[%clk 0:02:00.6]} 18. cxb5 {[%clk 0:01:52.5]}
18... Rb8 {[%clk 0:01:47.2]} 19. Bg5 {[%clk 0:01:09.5]} 19... Bf6 {[%clk
0:01:40.2]} 20. Qd2 {[%clk 0:01:04.2]} 20... Bd5 {[%clk 0:01:34.9]} 21. Rae1
{[%clk 0:00:55]} 21... Bxg2 {[%clk 0:01:31.4]} 22. Bxf6 {[%clk 0:00:52.6]} 22...
Bxh3 {[%clk 0:01:03.6]} 23. Bxe7 {[%clk 0:00:46.9]} 23... Qd5 {[%clk 0:01:00.1]}
24. Re4 {[%clk 0:00:46.1]} 24... Bxf1 {[%clk 0:00:56.1]} 25. Bxf8 {[%clk
0:00:42.3]} 25... Rxf8 {[%clk 0:00:55.6]} 26. Kxf1 {[%clk 0:00:41.8]} 26... Qxb5
{[%clk 0:00:54]} 27. Rxd4 {[%clk 0:00:38.5]} 27... Qb1+ {[%clk 0:00:53]} 28. Kg2
{[%clk 0:00:37.8]} 28... Qb5 {[%clk 0:00:45.6]} 29. Re4 {[%clk 0:00:36.4]} 29...
Qd5 {[%clk 0:00:42.4]} 30. Qe3 {[%clk 0:00:35.8]} 30... Re8 {[%clk 0:00:38.6]}
31. a4 {[%clk 0:00:35.2]} 31... Rxe4 {[%clk 0:00:38.8]} 32. dxe4 {[%clk
0:00:36.1]} 32... Qe5 {[%clk 0:00:36.8]} 33. Qb3+ {[%clk 0:00:35.5]} 33... Kg7
{[%clk 0:00:33.4]} 34. Qxb7+ {[%clk 0:00:32.5]} 34... Kh6 {[%clk 0:00:34]} 35.
Qd5 {[%clk 0:00:30]} 35... Qf4 {[%clk 0:00:31.2]} 36. f3 {[%clk 0:00:27.1]}
36... Qe3 {[%clk 0:00:30.9]} 37. Qxa5 {[%clk 0:00:23.2]} 37... Qe2+ {[%clk
0:00:29.6]} 38. Kg3 {[%clk 0:00:23.5]} 38... Qf1 {[%clk 0:00:24.9]} 39. Qd2+
{[%clk 0:00:21.5]} 39... g5 {[%clk 0:00:23.6]} 40. Qd6+ {[%clk 0:00:18]} 40...
Kg7 {[%clk 0:00:22.8]} 41. Qe7+ {[%clk 0:00:18.3]} 41... Kg6 {[%clk 0:00:22.7]}
42. Qe8+ {[%clk 0:00:16.8]} 42... Kg7 {[%clk 0:00:22.5]} 43. Qd7+ {[%clk
0:00:16.8]} 43... Kg6 {[%clk 0:00:20.6]} 44. Qc6+ {[%clk 0:00:16.6]} 44... Kg7
{[%clk 0:00:20.6]} 45. Qb7+ {[%clk 0:00:17.2]} 45... Kf6 {[%clk 0:00:19.6]} 46.
Qb6+ {[%clk 0:00:17.4]} 46... Ke7 {[%clk 0:00:18.1]} 47. Qe3 {[%clk 0:00:17.8]}
47... Qh1 {[%clk 0:00:16.5]} 48. Qxg5+ {[%clk 0:00:17.2]} 48... Ke6 {[%clk
0:00:17.4]} 49. Qf5+ {[%clk 0:00:17.4]} 49... Kd6 {[%clk 0:00:18.1]} 50. e5+
{[%clk 0:00:16.5]} 50... Kc6 {[%clk 0:00:19]} 51. Kf4 {[%clk 0:00:16.1]} 51...
Qc1+ {[%clk 0:00:15]} 52. Kg3 {[%clk 0:00:16.4]} 52... Qg1+ {[%clk 0:00:14.6]}
53. Kh4 {[%clk 0:00:16.7]} 53... Qh2+ {[%clk 0:00:13.6]} 54. Kg5 {[%clk
0:00:17.3]} 54... h6+ {[%clk 0:00:13.8]} 55. Kf6 {[%clk 0:00:17.5]} 55... Kd5
{[%clk 0:00:14.5]} 56. e6+ {[%clk 0:00:17.4]} 56... Kd6 {[%clk 0:00:14.3]} 57.
Qe5+ {[%clk 0:00:17.9]} 57... Qxe5+ {[%clk 0:00:12.5]} 58. Kg6 {[%clk
0:00:16.1]} 58... Qxe6+ {[%clk 0:00:13.4]} 59. Kh5 {[%clk 0:00:16.7]} 59... Ke5
{[%clk 0:00:13.1]} 60. a5 {[%clk 0:00:15.5]} 60... Kf4 {[%clk 0:00:14]} 61. a6
{[%clk 0:00:14.7]} 61... Qf6 {[%clk 0:00:14.4]} 62. a7 {[%clk 0:00:13.3]} 62...
Qg5# {[%clk 0:00:15.3]} 0-1

[Event "*** Titled Tuesday Blitz"]
[Site "Chess.com"]
[Date "2020.04.28"]
[Round "6"]
[White "atalz0"]
[Black "Ali_rastbod"]
[Result "0-1"]
[WhiteElo "2433"]
[BlackElo "2594"]
[TimeControl "180+1"]
[EndTime "11:07:51 PDT"]
[Termination "Ali_rastbod won by resignation"]

1. d4 {[%clk 0:03:00.9]} 1... Nf6 {[%clk 0:02:56.6]} 2. c4 {[%clk 0:03:01]} 2...
e6 {[%clk 0:02:57]} 3. Nc3 {[%clk 0:03:00.6]} 3... Bb4 {[%clk 0:02:57.6]} 4. Qc2
{[%clk 0:03:01]} 4... d5 {[%clk 0:02:46.6]} 5. cxd5 {[%clk 0:03:01.9]} 5... Qxd5
{[%clk 0:02:47.1]} 6. Nf3 {[%clk 0:03:01.3]} 6... Qf5 {[%clk 0:02:47.1]} 7. Qxf5
{[%clk 0:03:01.1]} 7... exf5 {[%clk 0:02:48]} 8. a3 {[%clk 0:03:01.6]} 8... Be7
{[%clk 0:02:30]} 9. Bf4 {[%clk 0:02:59.6]} 9... c6 {[%clk 0:02:29.8]} 10. e3
{[%clk 0:02:58.1]} 10... Be6 {[%clk 0:02:26.9]} 11. Bd3 {[%clk 0:02:56.4]} 11...
Nbd7 {[%clk 0:02:17.7]} 12. h3 {[%clk 0:02:56.4]} 12... g6 {[%clk 0:02:16.1]}
13. Ke2 {[%clk 0:02:36.2]} 13... O-O {[%clk 0:02:14.6]} 14. Bg5 {[%clk
0:02:22.3]} 14... Rfe8 {[%clk 0:02:12.4]} 15. b4 {[%clk 0:02:14.8]} 15... Nd5
{[%clk 0:02:11.7]} 16. Rhc1 {[%clk 0:02:10.4]} 16... Nxc3+ {[%clk 0:02:06.9]}
17. Rxc3 {[%clk 0:02:11.3]} 17... Bd5 {[%clk 0:02:07.8]} 18. Bxe7 {[%clk
0:02:00.1]} 18... Rxe7 {[%clk 0:02:08.7]} 19. g3 {[%clk 0:01:50.4]} 19... Rc8
{[%clk 0:01:18]} 20. Rac1 {[%clk 0:01:45.4]} 20... Nb6 {[%clk 0:01:16.5]} 21. b5
{[%clk 0:01:25.9]} 21... Na4 {[%clk 0:01:08.5]} 22. R3c2 {[%clk 0:01:19.6]}
22... Bb3 {[%clk 0:01:08.6]} 23. Rd2 {[%clk 0:01:15.9]} 23... Rec7 {[%clk
0:01:00.6]} 24. Ne5 {[%clk 0:01:05.8]} 24... cxb5 {[%clk 0:00:54.7]} 25. Rxc7
{[%clk 0:01:03.8]} 25... Rxc7 {[%clk 0:00:55.6]} 26. Bxb5 {[%clk 0:01:02.9]}
26... Nc3+ {[%clk 0:00:54.2]} 27. Kd3 {[%clk 0:00:57]} 27... Nxb5 {[%clk
0:00:55.1]} 28. Rb2 {[%clk 0:00:57]} 28... Rc3+ {[%clk 0:00:38.7]} 29. Kd2
{[%clk 0:00:57.2]} 29... a5 {[%clk 0:00:39.3]} 30. a4 {[%clk 0:00:55.3]} 30...
Bxa4 {[%clk 0:00:39.6]} 31. Rxb5 {[%clk 0:00:53.4]} 31... Rc2+ {[%clk
0:00:25.3]} 32. Kd3 {[%clk 0:00:53.5]} 32... Bxb5+ {[%clk 0:00:23.3]} 33. Kxc2
{[%clk 0:00:53.5]} 33... f6 {[%clk 0:00:22]} 34. Nf3 {[%clk 0:00:41.4]} 34...
Kf7 {[%clk 0:00:21.9]} 35. Kc3 {[%clk 0:00:37.2]} 35... Ke6 {[%clk 0:00:21.4]}
36. Nd2 {[%clk 0:00:36.3]} 36... b6 {[%clk 0:00:20.4]} 37. h4 {[%clk 0:00:31.5]}
37... Kd5 {[%clk 0:00:19.2]} 38. f3 {[%clk 0:00:29.6]} 38... Be2 {[%clk
0:00:19.2]} 39. e4+ {[%clk 0:00:29.5]} 39... fxe4 {[%clk 0:00:20.1]} 40. fxe4+
{[%clk 0:00:30]} 40... Kd6 {[%clk 0:00:20.4]} 41. Kb3 {[%clk 0:00:16.5]} 41...
b5 {[%clk 0:00:20.3]} 42. Kc3 {[%clk 0:00:16.4]} 42... b4+ {[%clk 0:00:19.9]}
43. Kb3 {[%clk 0:00:16.6]} 43... f5 {[%clk 0:00:17]} 44. e5+ {[%clk 0:00:12.3]}
44... Kd5 {[%clk 0:00:17.1]} 45. Ka4 {[%clk 0:00:12.9]} 45... Kxd4 {[%clk
0:00:09.4]} 46. e6 {[%clk 0:00:13.2]} 46... g5 {[%clk 0:00:10]} 47. e7 {[%clk
0:00:12.5]} 47... Bh5 {[%clk 0:00:10.4]} 48. Nb3+ {[%clk 0:00:10.5]} 48... Kc3
{[%clk 0:00:10.2]} 49. hxg5 {[%clk 0:00:10.6]} 49... Be8+ {[%clk 0:00:10.7]} 50.
Kxa5 {[%clk 0:00:08.8]} 50... Kxb3 {[%clk 0:00:11.6]} 0-1